[Event "WSTCC-50 2024"]
[Site "Krakow"]
[Date "2024.07.05"]
[Round "4.15"]
[White "Briestensky, Rastislav"]
[Black "Berg, Anders Hoyer"]
[Result "1-0"]
[ECO "C68"]
[WhiteElo "2274"]
[BlackElo "2079"]
[Annotator "TA"]
[PlyCount "75"]
[EventDate "2024.07.01"]
[EventType "team-tourn"]
[EventCountry "POL"]
[SourceTitle "playchess.com"]
[Source "ChessBase"]
[SourceQuality "1"]
[TimeControl "40/5400+30:1800+30"]

{[%evp 16,75,-31,-29,-25,-31,-38,-43,-42,-56,-49,-50,-51,-55,-48,-43,-38,-21,-12,-8,-22,-6,29,40,120,107,116,81,111,93,125,122,219,217,227,237,225,219,297,145,162,160,165,144,167,145,179,222,201,215,228,227,251,244,412,400,524,533,633,613,595,589]} 1. e4 {[%emt 0:00:04]} e5 {[%emt 0:00:12]} 2. Nf3 {[%emt 0:00:09]} Nc6 {[%emt 0:00:05]} 3. Bb5 {[%emt 0:00:06]} a6 {[%emt 0:00:15]} 4. Bxc6 {[%emt 0:00:43]} dxc6 {[%emt 0:00:14]} 5. d4 {[%emt 0:00:07]} exd4 {[%emt 0:00:46]} 6. Qxd4 {[%emt 0:00:16]} Qxd4 {[%emt 0:00:31]} 7. Nxd4 {[%emt 0:00:10]} Bd7 {[%emt 0:01:12]} 8. O-O {[%emt 0:00:32]} O-O-O {[%emt 0:01:00]} 9. Nc3 {[%emt 0:02:09]} Re8 {[%emt 0:07:12]} 10. a3 {[%emt 0:10:21]} Ne7 {[%emt 0:13:14]} 11. Re1 {[%emt 0:07:09]} Ng6 {[%emt 0:00:59] Black is slightly better.} 12. Be3 {[%emt 0:00:29]} h5 {[%emt 0:10:06]} 13. f4 {[%emt 0:07:35]} f6 {[%emt 0:08:30]} 14. Rad1 {[%emt 0:14:51]} Bd6 {[%emt 0:07:23]} 15. g3 {[%emt 0:07:15]} h4 {[%emt 0:00:59]} 16. Nf5 {[%emt 0:02:01]} hxg3 {[%emt 0:26:35]} 17. Nxd6+ {[%emt 0:02:25]} cxd6 {[%emt 0:00:02]} 18. hxg3 {[%emt 0:00:08]} Bg4 {[%emt 0:05:14]} 19. Rxd6 {[%emt 0:01:24]} Rh3 {[%emt 0:00:55]} (19... Nf8 $14) 20. Kg2 $16 {[%emt 0:00:14]} Reh8 {[%emt 0:04:46]} 21. Bg1 {[%emt 0:00:23] Dodges Rh2+} Kc7 {[%emt 0:02:46]} 22. Rd3 {[%emt 0:02:25]} Ne7 {[%emt 0:04:12]} 23. Nd1 {[%emt 0:06:30] aiming for Nf2.} Be6 {[%emt 0:00:40] [#]} (23... R3h7 $16 24. a4 c5) 24. f5 $1 $18 {[%emt 0:01:57]} Bc4 {[%emt 0:01:08]} 25. Rd4 {[%emt 0:01:50]} Bf7 {[%emt 0:00:13]} 26. Nf2 {[%emt 0:01:08]} R3h5 {[%emt 0:01:02]} 27. g4 {[%emt 0:00:14]} (27. Red1 $18 {has better winning chances.} Be8 28. Nd3 Nxf5 29. exf5 Rxf5 30. Nf4) 27... Rh4 {[%emt 0:00:59]} 28. Red1 {[%emt 0:02:04]} Be8 {[%emt 0:00:13] [#] Prevents Rd7+.} 29. R4d3 $1 $36 {[%emt 0:05:16][%mdl 2048] White is in control.} c5 {[%emt 0:00:46]} 30. Rh3 {[%emt 0:00:06]} Nc6 {[%emt 0:00:53]} 31. Bh2+ {[%emt 0:00:31][%cal Bg1h2,Bh2d6,Bd6f8,Bf8g7,Bg7f6][%mdl 32]} Kc8 {[%emt 0:01:36]} 32. Rxh4 {[%emt 0:00:35]} Rxh4 {[%emt 0:00:02]} 33. Bd6 {[%emt 0:01:35]} b6 {[%emt 0:00:20]} 34. Bf8 {[%emt 0:01:15]} g6 {[%emt 0:00:33]} (34... Ne5 {is a better defense.} 35. Rd6 (35. Bxg7 Nxg4 36. Rh1 Rxh1 $16) 35... Nxg4) 35. Bg7 {[%emt 0:00:41]} gxf5 {[%emt 0:00:54]} 36. exf5 {[%emt 0:00:44] White is clearly winning.} Nd4 {[%emt 0:01:28]} 37. Bxf6 {[%emt 0:00:30]} Bc6+ {[%emt 0:00:08]} 38. Kg3 {[%emt 0:00:25] Weighted Error Value: White=0.08 (flawless) /Black=0.31.  Mistake:       	White=1     	Black=3      Inaccurate:     	---       	Black=5      OK:         	White=15    	Black=9      Best:        	White=2     	---        Strong:       	White=1     	---} 1-0

[Event "WSTCC-50 2024"]
[Site "Krakow"]
[Date "2024.07.05"]
[Round "4.15"]
[White "Mai, Iris"]
[Black "Metcalfe, Allister"]
[Result "0-1"]
[ECO "A14"]
[WhiteElo "1972"]
[BlackElo "1889"]
[Annotator "RC"]
[PlyCount "137"]
[EventDate "2024.07.01"]
[EventType "team-tourn"]
[EventCountry "POL"]
[SourceTitle "playchess.com"]
[Source "ChessBase"]
[SourceQuality "1"]
[TimeControl "40/5400+30:1800+30"]

1. g3 {[%emt 0:00:11]} d5 {[%emt 0:05:16]} 2. Bg2 {[%emt 0:00:14]} Nf6 {[%emt 0:00:25]} 3. c4 {[%emt 0:05:29]} e6 {[%emt 0:01:21]} 4. Nf3 {[%emt 0:01:57]} Be7 {[%emt 0:04:06]} 5. O-O {[%emt 0:00:33]} O-O {[%emt 0:01:28]} 6. cxd5 {[%emt 0:09:54]} exd5 {[%emt 0:00:45]} 7. d4 {[%emt 0:01:31]} c6 {[%emt 0:05:48]} 8. Nc3 {[%emt 0:04:45]} Ne4 {[%emt 0:05:15]} 9. Ne5 {[%emt 0:00:50]} f6 {[%emt 0:09:16]} 10. Nd3 {[%emt 0:01:17]} Nd6 {[%emt 0:01:42]} 11. b4 {[%emt 0:04:00]} Be6 {[%emt 0:03:33]} 12. a4 {[%emt 0:07:45]} Ne4 {[%emt 0:04:37]} 13. Bb2 {[%emt 0:08:18]} Nxc3 {[%emt 0:01:56]} 14. Bxc3 {[%emt 0:00:08]} Nd7 {[%emt 0:02:12]} 15. b5 {[%emt 0:02:18]} Nb6 {[%emt 0:05:03]} 16. Nc5 {[%emt 0:08:11]} Bxc5 {[%emt 0:02:41]} 17. dxc5 {[%emt 0:00:08]} Nc4 {[%emt 0:02:42]} 18. Qd4 {[%emt 0:03:43]} Qc7 {[%emt 0:03:13]} 19. bxc6 {[%emt 0:10:13]} bxc6 {[%emt 0:00:19]} 20. g4 {[%emt 0:02:14]} Rad8 {[%emt 0:09:23]} 21. Rfd1 {[%emt 0:10:34]} Ne5 {[%emt 0:01:38]} 22. h3 {[%emt 0:05:47]} Ng6 {[%emt 0:00:29]} 23. Bd2 {[%emt 0:03:08]} Qe5 {[%emt 0:00:52]} 24. Be3 {[%emt 0:00:50]} Qxd4 {[%emt 0:01:18]} 25. Rxd4 {[%emt 0:00:32]} Rb8 {[%emt 0:01:47]} 26. Bd2 {[%emt 0:04:44]} f5 {[%emt 0:03:28]} 27. gxf5 {[%emt 0:00:26]} Bxf5 {[%emt 0:00:20]} 28. Bg5 {[%emt 0:01:41]} Rb2 {[%emt 0:01:32]} 29. Bf1 {[%emt 0:01:55]} Rfb8 {[%emt 0:01:02]} 30. h4 {[%emt 0:00:47]} h6 {[%emt 0:00:23]} 31. Bf4 {[%emt 0:00:38]} Nxf4 {[%emt 0:00:11]} 32. Rxf4 {[%emt 0:00:01]} g6 {[%emt 0:00:32]} 33. h5 {[%emt 0:00:05]} Kg7 {[%emt 0:00:46]} 34. hxg6 {[%emt 0:00:05]} Kxg6 {[%emt 0:00:54]} 35. Ra3 {[%emt 0:00:02]} R2b3 {[%emt 0:00:40]} 36. Rxb3 {[%emt 0:00:37]} Rxb3 {[%emt 0:00:02]} 37. a5 {[%emt 0:01:45]} Rc3 {[%emt 0:00:23]} 38. Rb4 {[%emt 0:00:56]} Rxc5 {[%emt 0:00:21]} 39. a6 {[%emt 0:00:08]} Rc1 {[%emt 0:01:00]} 40. Kg2 {[%emt 0:01:08]} Bc8 {[%emt 0:02:57]} 41. e3 {[%emt 0:05:37]} Bh3+ {[%emt 0:09:37]} 42. Kxh3 {[%emt 0:00:07]} Rxf1 {[%emt 0:00:03]} 43. Rg4+ {[%emt 0:01:46]} Kf6 {[%emt 0:03:09]} 44. Rf4+ {[%emt 0:00:30]} Ke6 {[%emt 0:00:27]} 45. Kg2 {[%emt 0:00:29]} Ra1 {[%emt 0:00:07]} 46. Rh4 {[%emt 0:00:03]} Rxa6 {[%emt 0:00:50]} 47. Rxh6+ {[%emt 0:00:05]} Kf5 {[%emt 0:02:04]} 48. Kf3 {[%emt 0:03:01]} Rb6 {[%emt 0:01:46]} 49. Rh5+ {[%emt 0:05:55]} Kg6 {[%emt 0:00:58]} 50. Rh4 {[%emt 0:00:27]} a5 {[%emt 0:00:15]} 51. Ra4 {[%emt 0:00:22]} Rb5 {[%emt 0:02:11]} 52. Ke2 {[%emt 0:02:21]} Kf5 {[%emt 0:01:07]} 53. f3 {[%emt 0:02:36]} Ke5 {[%emt 0:01:13]} 54. Kd3 {[%emt 0:00:24]} Kd6 {[%emt 0:00:46]} 55. f4 {[%emt 0:05:05]} c5 {[%emt 0:01:17]} 56. Ra1 {[%emt 0:00:47]} c4+ {[%emt 0:01:11]} 57. Kc2 {[%emt 0:00:48]} Ke6 {[%emt 0:00:58]} 58. Rh1 {[%emt 0:02:01]} a4 {[%emt 0:00:42]} 59. Rh5 {[%emt 0:03:12]} a3 {[%emt 0:05:00]} 60. Re5+ {[%emt 0:02:27]} Kd6 {[%emt 0:01:06]} 61. Re8 {[%emt 0:00:18]} Rb2+ {[%emt 0:00:57]} 62. Kc3 {[%emt 0:01:07]} Rb3+ {[%emt 0:02:04]} 63. Kd2 {[%emt 0:00:09]} a2 {[%emt 0:00:57]} 64. Ra8 {[%emt 0:00:13]} Rb2+ {[%emt 0:00:49]} 65. Kc3 {[%emt 0:00:28]} Re2 {[%emt 0:00:32]} 66. Kd4 {[%emt 0:02:41]} Rd2+ {[%emt 0:00:18]} 67. Kc3 {[%emt 0:00:06]} Rd3+ 68. Kb2 Rxe3 69. Kxa2 0-1

[Event "WSTCC-50 2024"]
[Site "Krakow"]
[Date "2024.07.05"]
[Round "4.15"]
[White "Dettmann, Holger"]
[Black "Baliuniene, Margarita"]
[Result "1-0"]
[ECO "A06"]
[WhiteElo "1965"]
[BlackElo "1960"]
[Annotator "NA RC"]
[PlyCount "127"]
[EventDate "2024.07.01"]
[EventType "team-tourn"]
[EventCountry "POL"]
[SourceTitle "playchess.com"]
[Source "ChessBase"]
[SourceQuality "1"]
[TimeControl "40/5400+30:1800+30"]

1. Nf3 {[%emt 0:03:47]} d5 {[%emt 0:00:17]} 2. g3 {[%emt 0:00:28]} Nf6 {[%emt 0:00:35]} 3. Bg2 {[%emt 0:00:03]} e6 {[%emt 0:00:35]} 4. O-O {[%emt 0:00:53]} Be7 {[%emt 0:00:38]} 5. c4 {[%emt 0:06:24]} O-O {[%emt 0:00:43]} 6. b3 {[%emt 0:02:55]} Nbd7 {[%emt 0:00:28]} 7. Bb2 {[%emt 0:01:59]} b6 {[%emt 0:01:29]} 8. cxd5 {[%emt 0:07:03]} Nxd5 {[%emt 0:03:49]} 9. d4 {[%emt 0:02:50]} Bb7 {[%emt 0:00:26]} 10. Nbd2 {[%emt 0:01:35]} c5 {[%emt 0:01:57]} 11. Rc1 {[%emt 0:05:53]} Rc8 {[%emt 0:02:31]} 12. Nc4 {[%emt 0:05:04]} N7f6 {[%emt 0:09:04]} 13. Nce5 {[%emt 0:13:29]} h6 {[%emt 0:03:49]} 14. a3 {[%emt 0:03:02]} a5 {[%emt 0:09:31]} 15. Qd3 {[%emt 0:04:01]} Nc7 {[%emt 0:08:13]} 16. Rfd1 {[%emt 0:01:24]} Be4 {[%emt 0:04:26]} 17. Qd2 {[%emt 0:00:30]} Ncd5 {[%emt 0:08:08]} 18. dxc5 {[%emt 0:03:32]} Bxc5 {[%emt 0:01:18]} 19. e3 {[%emt 0:10:56]} Qe7 {[%emt 0:01:05]} 20. a4 {[%emt 0:02:44]} Rfd8 {[%emt 0:05:42]} 21. Qe2 {[%emt 0:00:39]} Qb7 {[%emt 0:03:13]} 22. h3 {[%emt 0:08:57]} Bb4 {[%emt 0:02:36]} 23. Nc4 {[%emt 0:01:23]} b5 {[%emt 0:03:44]} 24. axb5 {[%emt 0:00:08]} Qxb5 {[%emt 0:00:26]} 25. Nd4 {[%emt 0:02:12]} Qa6 {[%emt 0:03:08]} 26. f3 {[%emt 0:02:10]} Bg6 {[%emt 0:00:48]} 27. e4 {[%emt 0:00:02]} Ne7 {[%emt 0:01:08]} 28. Kh2 {[%emt 0:01:45]} Nd7 {[%emt 0:03:00]} 29. Bf1 {[%emt 0:00:39]} Nc5 {[%emt 0:02:59]} 30. Ne5 {[%emt 0:02:40]} Qxe2+ {[%emt 0:02:25]} 31. Bxe2 {[%emt 0:00:10]} Bh7 {[%emt 0:00:48]} 32. Bb5 {[%emt 0:02:21]} Kf8 {[%emt 0:03:59]} 33. Kg1 {[%emt 0:02:20]} g5 {[%emt 0:01:42]} 34. Ba4 {[%emt 0:01:01]} Nxa4 {[%emt 0:02:03]} 35. Rxc8 {[%emt 0:00:11]} Nxc8 {[%emt 0:00:49]} 36. Nxe6+ {[%emt 0:00:15]} fxe6 {[%emt 0:00:23]} 37. Rxd8+ {[%emt 0:00:05]} Ke7 {[%emt 0:00:04]} 38. Nc6+ {[%emt 0:00:25]} Kf7 {[%emt 0:00:17]} 39. bxa4 {[%emt 0:00:05]} Bc5+ {[%emt 0:00:31]} 40. Kf1 {[%emt 0:00:11]} Nb6 {[%emt 0:00:10]} 41. Nxa5 {[%emt 0:30:40]} Bg6 {[%emt 0:30:31]} 42. Bd4 {[%emt 0:02:23]} Nxa4 {[%emt 0:00:31]} 43. Bxc5 {[%emt 0:01:00]} Nxc5 {[%emt 0:00:01]} 44. Nc4 {[%emt 0:00:17]} Kf6 {[%emt 0:01:09]} 45. Kf2 {[%emt 0:00:29]} e5 {[%emt 0:00:47]} 46. Rd5 {[%emt 0:00:42]} Ne6 {[%emt 0:01:16]} 47. Nxe5 {[%emt 0:00:11]} Be8 {[%emt 0:00:09]} 48. Nd7+ {[%emt 0:01:10]} Ke7 {[%emt 0:00:34]} 49. Nc5 {[%emt 0:00:15]} Ng7 {[%emt 0:01:01]} 50. f4 {[%emt 0:00:39]} gxf4 {[%emt 0:01:21]} 51. gxf4 {[%emt 0:00:02]} Bc6 {[%emt 0:00:41]} 52. Re5+ {[%emt 0:01:03]} Kf6 {[%emt 0:00:04]} 53. Ke3 {[%emt 0:00:40]} Be8 {[%emt 0:00:54]} 54. Rd5 {[%emt 0:00:00]} h5 {[%emt 0:00:00]} 55. Rd6+ {[%emt 0:00:00]} Ke7 {[%emt 0:00:00]} 56. Rb6 {[%emt 0:00:00]} Bf7 {[%emt 0:00:00]} 57. f5 {[%emt 0:00:00]} Ne8 {[%emt 0:00:00]} 58. e5 {[%emt 0:00:00]} Nc7 {[%emt 0:00:00]} 59. Rb7 {[%emt 0:00:00]} Kd8 {[%emt 0:00:00]} 60. e6 {[%emt 0:00:00]} Be8 {[%emt 0:00:00]} 61. Kd4 {[%emt 0:00:00]} Kc8 {[%emt 0:00:00]} 62. Rb3 {[%emt 0:00:00]} Nb5+ {[%emt 0:00:00]} 63. Ke5 {[%emt 0:00:00]} Kc7 {[%emt 0:00:00]} 64. Ne4 {[%emt 0:00:00]} 1-0

[Event "WSTCC-50 2024"]
[Site "Krakow"]
[Date "2024.07.05"]
[Round "4.16"]
[White "Harstad, Christian"]
[Black "Kantorik, Marian"]
[Result "1/2-1/2"]
[ECO "C48"]
[WhiteElo "1917"]
[BlackElo "2198"]
[Annotator "RC"]
[PlyCount "90"]
[EventDate "2024.07.01"]
[EventType "team-tourn"]
[EventCountry "POL"]
[SourceTitle "playchess.com"]
[Source "ChessBase"]
[SourceQuality "1"]
[TimeControl "40/5400+30:1800+30"]

1. e4 {[%emt 0:00:03]} e5 {[%emt 0:00:16]} 2. Nf3 {[%emt 0:00:08]} Nc6 {[%emt 0:00:06]} 3. Nc3 {[%emt 0:00:09]} Nf6 {[%emt 0:00:39]} 4. Bb5 {[%emt 0:00:24]} Nd4 {[%emt 0:03:56]} 5. Ba4 {[%emt 0:01:50]} Nxf3+ {[%emt 0:08:20]} 6. Qxf3 {[%emt 0:00:09]} c6 {[%emt 0:00:26]} 7. O-O {[%emt 0:02:56]} d6 {[%emt 0:03:13]} 8. d3 {[%emt 0:01:56]} Be7 {[%emt 0:03:45]} 9. h3 {[%emt 0:05:32]} O-O {[%emt 0:01:14]} 10. Bb3 {[%emt 0:00:21]} Be6 {[%emt 0:00:40]} 11. g4 {[%emt 0:12:10]} Bxb3 {[%emt 0:05:37]} 12. axb3 {[%emt 0:00:27]} d5 {[%emt 0:00:34]} 13. Re1 {[%emt 0:05:41]} dxe4 {[%emt 0:02:29]} 14. Nxe4 {[%emt 0:08:21]} Nxe4 {[%emt 0:04:12]} 15. Rxe4 {[%emt 0:03:15]} Bd6 {[%emt 0:02:15]} 16. Be3 {[%emt 0:04:19]} a6 {[%emt 0:05:14]} 17. g5 {[%emt 0:09:37]} Qd7 {[%emt 0:09:09]} 18. Rg4 {[%emt 0:26:39]} Kh8 {[%emt 0:08:51]} 19. Raa4 {[%emt 0:00:24]} b5 {[%emt 0:01:38]} 20. Rae4 {[%emt 0:00:13]} Rae8 {[%emt 0:07:18]} 21. Rh4 {[%emt 0:00:34]} Re6 {[%emt 0:08:27]} 22. Qh5 {[%emt 0:10:27]} h6 {[%emt 0:01:05]} 23. Reg4 {[%emt 0:01:00]} Qe8 {[%emt 0:02:58]} 24. Re4 {[%emt 0:02:04]} f5 {[%emt 0:01:14]} 25. gxf6 {[%emt 0:00:19]} Rexf6 {[%emt 0:02:32]} 26. Qxe8 {[%emt 0:00:36]} Rxe8 {[%emt 0:00:06]} 27. Rhg4 {[%emt 0:00:40]} Ree6 {[%emt 0:02:49]} 28. Kf1 {[%emt 0:01:29]} Kh7 {[%emt 0:03:03]} 29. Ke2 {[%emt 0:00:47]} g6 {[%emt 0:01:31]} 30. Rg1 {[%emt 0:00:17]} c5 {[%emt 0:01:00]} 31. Ra1 {[%emt 0:00:28]} Bf8 {[%emt 0:01:26]} 32. c3 {[%emt 0:00:21]} Kg8 {[%emt 0:01:12]} 33. Ra5 {[%emt 0:00:27]} Kf7 {[%emt 0:00:33]} 34. Rh4 {[%emt 0:00:50]} h5 {[%emt 0:01:12]} 35. Re4 {[%emt 0:00:09]} Be7 {[%emt 0:00:45]} 36. c4 {[%emt 0:00:42]} bxc4 {[%emt 0:01:52]} 37. bxc4 {[%emt 0:00:21]} Rb6 {[%emt 0:00:33]} 38. Rxe5 {[%emt 0:00:34]} Rxb2+ {[%emt 0:00:28]} 39. Kf1 {[%emt 0:00:37]} Bd6 {[%emt 0:00:49]} 40. Rd5 Bg3 {[%emt 0:02:24]} 41. Kg2 {[%emt 0:09:24]} h4 {[%emt 0:04:45]} 42. Raxc5 {[%emt 0:07:35]} Bxf2 {[%emt 0:11:27]} 43. Rc7+ {[%emt 0:00:50]} Ke8 {[%emt 0:00:19]} 44. Rc8+ {[%emt 0:00:41]} Ke7 {[%emt 0:00:06]} 45. Rc7+ {[%emt 0:00:35]} Ke8 {[%emt 0:00:20]} 1/2-1/2

[Event "WSTCC-50 2024"]
[Site "Krakow"]
[Date "2024.07.05"]
[Round "4.16"]
[White "Buriene, Regina"]
[Black "Van Bentum, Horst"]
[Result "1/2-1/2"]
[ECO "C88"]
[WhiteElo "1904"]
[BlackElo "1951"]
[Annotator "NA RC"]
[PlyCount "39"]
[EventDate "2024.07.01"]
[EventType "team-tourn"]
[EventCountry "POL"]
[SourceTitle "playchess.com"]
[Source "ChessBase"]
[SourceQuality "1"]
[TimeControl "40/5400+30:1800+30"]

1. e4 {[%emt 0:00:04]} e5 {[%emt 0:00:11]} 2. Nf3 {[%emt 0:00:24]} Nc6 {[%emt 0:00:13]} 3. Bb5 {[%emt 0:00:14]} a6 {[%emt 0:00:14]} 4. Ba4 {[%emt 0:00:07]} Nf6 {[%emt 0:00:14]} 5. O-O {[%emt 0:00:18]} Be7 {[%emt 0:00:22]} 6. Re1 {[%emt 0:00:21]} b5 {[%emt 0:00:16]} 7. Bb3 {[%emt 0:00:05]} d6 {[%emt 0:00:21]} 8. h3 {[%emt 0:00:27]} Na5 {[%emt 0:03:04]} 9. c3 {[%emt 0:07:26]} Nxb3 {[%emt 0:01:08]} 10. axb3 {[%emt 0:03:23]} c5 {[%emt 0:03:23]} 11. c4 {[%emt 0:08:57]} Bd7 {[%emt 0:05:17]} 12. d3 {[%emt 0:00:42]} O-O {[%emt 0:01:05]} 13. Nc3 {[%emt 0:00:05]} Qc7 {[%emt 0:08:47]} 14. Nh2 {[%emt 0:16:43]} b4 {[%emt 0:03:05]} 15. Ne2 {[%emt 0:06:45]} Ne8 {[%emt 0:03:19]} 16. f4 {[%emt 0:09:58]} f5 {[%emt 0:00:57]} 17. Nf3 {[%emt 0:25:40]} Bf6 {[%emt 0:07:16]} 18. fxe5 {[%emt 0:03:39]} dxe5 {[%emt 0:09:12]} 19. exf5 Bxf5 20. Ng3 1/2-1/2

[Event "WSTCC-50 2024"]
[Site "Krakow"]
[Date "2024.07.05"]
[Round "4.16"]
[White "Schutte, Andre"]
[Black "Jahn, Constanze"]
[Result "1/2-1/2"]
[ECO "B20"]
[WhiteElo "1817"]
[BlackElo "2051"]
[Annotator "RC"]
[PlyCount "114"]
[EventDate "2024.07.01"]
[EventType "team-tourn"]
[EventCountry "POL"]
[SourceTitle "playchess.com"]
[Source "ChessBase"]
[SourceQuality "1"]
[TimeControl "40/5400+30:1800+30"]

1. e4 {[%emt 0:02:53]} c5 {[%emt 0:00:05]} 2. c4 {[%emt 0:00:05]} Nc6 {[%emt 0:00:15]} 3. Nc3 {[%emt 0:00:07]} d6 {[%emt 0:00:16]} 4. g3 {[%emt 0:00:20]} g6 {[%emt 0:00:17]} 5. Bg2 {[%emt 0:00:16]} Bg7 {[%emt 0:00:06]} 6. Nge2 {[%emt 0:00:15]} Bd7 {[%emt 0:00:59]} 7. O-O {[%emt 0:00:53]} h5 {[%emt 0:00:18]} 8. h3 {[%emt 0:00:06]} Nh6 {[%emt 0:01:59]} 9. d3 {[%emt 0:00:58]} O-O {[%emt 0:08:41]} 10. Kh2 {[%emt 0:05:14]} Kh7 {[%emt 0:05:07]} 11. f4 {[%emt 0:03:14]} e6 {[%emt 0:14:27]} 12. Be3 {[%emt 0:07:44]} Nd4 {[%emt 0:03:43]} 13. Qd2 {[%emt 0:03:58]} Rb8 {[%emt 0:06:21]} 14. Rab1 {[%emt 0:03:07]} a6 {[%emt 0:00:43]} 15. Nd1 {[%emt 0:11:54]} Nxe2 {[%emt 0:05:29]} 16. Qxe2 {[%emt 0:00:12]} b5 {[%emt 0:06:00]} 17. b3 {[%emt 0:00:46]} bxc4 {[%emt 0:07:39]} 18. dxc4 {[%emt 0:00:10]} Rc8 {[%emt 0:01:54]} 19. Nf2 {[%emt 0:00:47]} f5 {[%emt 0:02:20]} 20. Rfd1 {[%emt 0:00:41]} Qe7 {[%emt 0:02:00]} 21. Qd3 {[%emt 0:02:08]} Nf7 {[%emt 0:00:23]} 22. e5 {[%emt 0:08:27]} Bc6 {[%emt 0:03:24]} 23. Bxc6 {[%emt 0:07:09]} Rxc6 {[%emt 0:00:05]} 24. exd6 {[%emt 0:00:05]} Qd7 {[%emt 0:13:39]} 25. Qe2 {[%emt 0:01:24]} Nxd6 {[%emt 0:00:52]} 26. Nd3 {[%emt 0:01:18]} Qc7 {[%emt 0:01:15]} 27. Nf2 {[%emt 0:06:15]} Re8 {[%emt 0:04:02]} 28. Rd2 {[%emt 0:05:03]} e5 {[%emt 0:02:17]} 29. Qf3 {[%emt 0:00:50]} e4 {[%emt 0:01:47]} 30. Qe2 {[%emt 0:00:01]} Nf7 {[%emt 0:03:42]} 31. Rbd1 {[%emt 0:04:00]} Rd6 {[%emt 0:01:05]} 32. Rd5 {[%emt 0:01:15]} Rxd5 {[%emt 0:00:28]} 33. Rxd5 {[%emt 0:00:02]} Bf8 {[%emt 0:00:22]} 34. g4 {[%emt 0:01:37]} hxg4 {[%emt 0:00:55]} 35. hxg4 Bd6 {[%emt 0:01:04]} 36. Nh3 {[%emt 0:01:13]} fxg4 {[%emt 0:01:16]} 37. Qxg4 {[%emt 0:00:24]} Nh6 {[%emt 0:00:48]} 38. Qg5 {[%emt 0:02:13]} Be7 {[%emt 0:00:18]} 39. Qg2 {[%emt 0:01:34]} Bd6 {[%emt 0:01:10]} 40. Kg1 {[%emt 0:05:18]} Nf5 {[%emt 0:00:49]} 41. Ng5+ {[%emt 0:33:42]} Kh8 {[%emt 0:06:35]} 42. Qh3+ {[%emt 0:00:00]} Kg8 {[%emt 0:00:11]} 43. Rxf5 {[%emt 0:00:00]} gxf5 {[%emt 0:00:30]} 44. Qxf5 {[%emt 0:00:00]} Rf8 {[%emt 0:10:56]} 45. Qg6+ {[%emt 0:00:00]} Qg7 {[%emt 0:02:41]} 46. Qxg7+ {[%emt 0:00:00]} Kxg7 {[%emt 0:00:06]} 47. Ne6+ {[%emt 0:00:00]} Kf6 {[%emt 0:00:26]} 48. Nxf8 {[%emt 0:00:00]} Bxf8 {[%emt 0:00:04]} 49. Kg2 {[%emt 0:00:00]} Kf5 {[%emt 0:00:27]} 50. Kg3 {[%emt 0:00:00]} Be7 {[%emt 0:00:30]} 51. a3 {[%emt 0:00:00]} Bf8 {[%emt 0:01:40]} 52. Bd2 {[%emt 0:00:00]} Bd6 {[%emt 0:00:09]} 53. b4 {[%emt 0:00:00]} e3 {[%emt 0:01:49]} 54. Bxe3 {[%emt 0:00:00]} cxb4 {[%emt 0:00:08]} 55. axb4 {[%emt 0:01:34]} Bxb4 {[%emt 0:00:06]} 56. c5 {[%emt 0:00:03]} Ba5 {[%emt 0:00:33]} 57. Kf3 {[%emt 0:02:27]} Bc7 {[%emt 0:00:25]} 1/2-1/2

[Event "WSTCC-50 2024"]
[Site "Krakow"]
[Date "2024.07.05"]
[Round "4.17"]
[White "Crocker, Philip J"]
[Black "Osiecki, Stanislaw"]
[Result "1-0"]
[ECO "E68"]
[WhiteElo "2122"]
[BlackElo "1986"]
[Annotator "RC"]
[PlyCount "121"]
[EventDate "2024.07.01"]
[EventType "team-tourn"]
[EventCountry "POL"]
[SourceTitle "playchess.com"]
[Source "ChessBase"]
[SourceQuality "1"]
[TimeControl "40/5400+30:1800+30"]

1. d4 {[%emt 0:00:09]} Nf6 {[%emt 0:00:07]} 2. c4 {[%emt 0:00:14]} g6 {[%emt 0:00:10]} 3. g3 {[%emt 0:00:18]} Bg7 {[%emt 0:00:06]} 4. Bg2 {[%emt 0:00:12]} d6 {[%emt 0:00:08]} 5. Nf3 {[%emt 0:00:28]} O-O {[%emt 0:00:14]} 6. O-O {[%emt 0:00:20]} Nbd7 {[%emt 0:00:22]} 7. Nc3 {[%emt 0:00:12]} e5 {[%emt 0:00:25]} 8. e4 {[%emt 0:00:24]} exd4 {[%emt 0:01:10]} 9. Nxd4 {[%emt 0:00:13]} a5 {[%emt 0:00:53]} 10. h3 {[%emt 0:00:40]} Nc5 {[%emt 0:00:06]} 11. Re1 {[%emt 0:00:41]} Re8 {[%emt 0:00:36]} 12. Ndb5 {[%emt 0:01:39]} Be6 {[%emt 0:01:00]} 13. Bf1 {[%emt 0:18:27]} Qd7 {[%emt 0:03:01]} 14. Kh2 {[%emt 0:01:13]} Rad8 {[%emt 0:02:57]} 15. Bf4 {[%emt 0:02:20]} Nh5 {[%emt 0:01:36]} 16. Bg5 {[%emt 0:03:57]} Bf6 {[%emt 0:02:01]} 17. Bxf6 {[%emt 0:02:25]} Nxf6 {[%emt 0:01:57]} 18. Qd4 {[%emt 0:02:42]} Nh5 {[%emt 0:01:26]} 19. Rad1 {[%emt 0:02:55]} b6 {[%emt 0:07:41]} 20. e5 {[%emt 0:04:41]} Ng7 {[%emt 0:10:14]} 21. g4 {[%emt 0:02:13]} Re7 {[%emt 0:14:54]} 22. exd6 {[%emt 0:04:23]} cxd6 {[%emt 0:02:46]} 23. Qxd6 {[%emt 0:02:11]} Qxd6+ {[%emt 0:00:14]} 24. Rxd6 {[%emt 0:01:38]} Rxd6 {[%emt 0:00:13]} 25. Nxd6 {[%emt 0:00:06]} Rd7 {[%emt 0:00:39]} 26. Ncb5 {[%emt 0:05:28]} Nb7 {[%emt 0:03:46]} 27. Nxb7 {[%emt 0:02:10]} Rxb7 {[%emt 0:00:02]} 28. Rd1 {[%emt 0:02:44]} Rb8 {[%emt 0:05:02]} 29. Kg3 {[%emt 0:06:16]} Kf8 {[%emt 0:00:50]} 30. b3 {[%emt 0:03:39]} Ke7 {[%emt 0:00:39]} 31. Bg2 {[%emt 0:01:27]} g5 {[%emt 0:07:07]} 32. f4 {[%emt 0:02:35]} gxf4+ {[%emt 0:02:01]} 33. Kxf4 {[%emt 0:00:05]} h5 {[%emt 0:03:13]} 34. Nd4 {[%emt 0:10:27]} Bd7 {[%emt 0:01:14]} 35. Nf5+ {[%emt 0:03:59]} Nxf5 {[%emt 0:02:13]} 36. gxf5 {[%emt 0:00:07]} f6 {[%emt 0:02:07]} 37. Bf3 {[%emt 0:02:32]} h4 {[%emt 0:02:53]} 38. Rg1 {[%emt 0:01:22]} Kd6 {[%emt 0:01:04]} 39. Rg6 {[%emt 0:04:23]} Rf8 {[%emt 0:00:10]} 40. Rh6 {[%emt 0:01:44]} Kc5 {[%emt 0:00:13]} 41. Rxh4 {[%emt 0:31:06]} a4 {[%emt 0:31:37]} 42. Rh7 {[%emt 0:00:56]} Bc8 {[%emt 0:06:33]} 43. h4 {[%emt 0:00:00]} axb3 {[%emt 0:00:00]} 44. axb3 {[%emt 0:00:00]} Kb4 {[%emt 0:00:00]} 45. Bd5 {[%emt 0:00:00]} b5 {[%emt 0:00:00]} 46. cxb5 {[%emt 0:00:00]} Kxb5 {[%emt 0:00:00]} 47. h5 {[%emt 0:00:00]} Kc5 {[%emt 0:00:00]} 48. Be6 {[%emt 0:00:00]} Bxe6 {[%emt 0:00:00]} 49. fxe6 {[%emt 0:00:00]} Rb8 {[%emt 0:00:00]} 50. Kf5 {[%emt 0:00:00]} Rxb3 {[%emt 0:00:00]} 51. Kxf6 {[%emt 0:00:00]} Rf3+ {[%emt 0:00:00]} 52. Ke7 {[%emt 0:00:00]} Ra3 {[%emt 0:00:00]} 53. Rh8 {[%emt 0:00:00]} Kd5 {[%emt 0:00:00]} 54. Rg8 {[%emt 0:00:00]} Rh3 {[%emt 0:00:00]} 55. Rg5+ {[%emt 0:00:00]} Kc6 {[%emt 0:00:00]} 56. Re5 {[%emt 0:00:00]} Rf3 {[%emt 0:00:00]} 57. Re1 {[%emt 0:00:00]} Rh3 {[%emt 0:00:00]} 58. Rc1+ {[%emt 0:00:00]} Kd5 {[%emt 0:00:00]} 59. Kd7 {[%emt 0:00:53]} Rxh5 {[%emt 0:00:00]} 60. e7 {[%emt 0:00:31]} Rh7 {[%emt 0:00:00]} 61. Kd8 {[%emt 0:00:45]} 1-0